[Event "Late-Titled-Tuesday-Blitz-June-04-2024"]
[Site "Chess.com"]
[Date "2024.06.04"]
[Round "2"]
[White "Tunahan_Makaraci"]
[Black "Kiborg95"]
[Result "0-1"]
[WhiteElo "2572"]
[BlackElo "2907"]
[TimeControl "180+1"]
[EndTime "14:18:42 PDT"]
[Termination "Kiborg95 won by resignation"]

1. e4 {[%clk 0:03:00.4]} 1... d6 {[%clk 0:02:59.4]} 2. d4 {[%clk 0:03:00]} 2...
Nf6 {[%clk 0:03:00.1]} 3. Nc3 {[%clk 0:02:59.6]} 3... Nbd7 {[%clk 0:03:00.8]} 4.
Nge2 {[%clk 0:02:59.2]} 4... e5 {[%clk 0:03:01.1]} 5. g3 {[%clk 0:02:59.1]} 5...
c6 {[%clk 0:03:01.4]} 6. a4 {[%clk 0:02:58.8]} 6... b6 {[%clk 0:03:01.6]} 7. Bg2
{[%clk 0:02:59.1]} 7... a6 {[%clk 0:03:02.4]} 8. O-O {[%clk 0:02:59]} 8... Bb7
{[%clk 0:03:03.1]} 9. h3 {[%clk 0:02:59.2]} 9... h5 {[%clk 0:03:03.8]} 10. Be3
{[%clk 0:02:59]} 10... Be7 {[%clk 0:03:04.1]} 11. f4 {[%clk 0:02:59.3]} 11...
Qc7 {[%clk 0:03:03.7]} 12. Qd2 {[%clk 0:02:41.2]} 12... O-O {[%clk 0:03:03.7]}
13. Bf3 {[%clk 0:02:39.7]} 13... b5 {[%clk 0:03:03.5]} 14. axb5 {[%clk
0:02:38.9]} 14... axb5 {[%clk 0:03:04.4]} 15. g4 {[%clk 0:02:38.9]} 15... hxg4
{[%clk 0:03:01.8]} 16. hxg4 {[%clk 0:02:38.9]} 16... b4 {[%clk 0:02:58.1]} 17.
Rxa8 {[%clk 0:02:38.3]} 17... Rxa8 {[%clk 0:02:51.8]} 18. Nd1 {[%clk 0:02:38.1]}
18... exd4 {[%clk 0:02:47.8]} 19. Nxd4 {[%clk 0:02:31.9]} 19... c5 {[%clk
0:02:48.3]} 20. Nf5 {[%clk 0:02:31.9]} 20... Bf8 {[%clk 0:02:48.9]} 21. Nf2
{[%clk 0:02:30.7]} 21... Ra2 {[%clk 0:02:07.8]} 22. g5 {[%clk 0:02:30.7]} 22...
Ne8 {[%clk 0:02:07.9]} 23. b3 {[%clk 0:02:29.6]} 23... c4 {[%clk 0:01:56.8]} 24.
Qxb4 {[%clk 0:02:11.7]} 24... Rxc2 {[%clk 0:01:37.6]} 25. bxc4 {[%clk 0:02:09]}
25... Rxc4 {[%clk 0:01:21.2]} 26. Qb1 {[%clk 0:02:06.5]} 26... Nc5 {[%clk
0:01:10.7]} 27. Rc1 {[%clk 0:01:57.9]} 27... Rxc1+ {[%clk 0:01:06.2]} 28. Qxc1
{[%clk 0:01:57.6]} 28... g6 {[%clk 0:00:58.9]} 29. Ng3 {[%clk 0:01:43.4]} 29...
Ng7 {[%clk 0:00:52.1]} 30. Ng4 {[%clk 0:01:36.8]} 30... Ne8 {[%clk 0:00:52.5]}
31. Bd4 {[%clk 0:01:31.7]} 31... Ne6 {[%clk 0:00:49.2]} 32. Qxc7 {[%clk
0:01:26.3]} 32... N6xc7 {[%clk 0:00:48.6]} 33. Kf2 {[%clk 0:01:22.5]} 33... Ne6
{[%clk 0:00:48.8]} 34. Be3 {[%clk 0:01:22.7]} 34... Bg7 {[%clk 0:00:48.9]} 35.
f5 {[%clk 0:01:22]} 35... Nd4 {[%clk 0:00:45.2]} 36. f6 {[%clk 0:01:10.1]} 36...
Nxf3 {[%clk 0:00:45.2]} 37. Kxf3 {[%clk 0:01:10.4]} 37... Bf8 {[%clk 0:00:44.9]}
38. Bb6 {[%clk 0:00:54.6]} 38... d5 {[%clk 0:00:35.7]} 39. e5 {[%clk 0:00:53.3]}
39... Bc8 {[%clk 0:00:27.5]} 40. Ne3 {[%clk 0:00:49.4]} 40... Be6 {[%clk
0:00:27.2]} 41. Ne2 {[%clk 0:00:46.6]} 41... Ba3 {[%clk 0:00:22.7]} 42. Nf4
{[%clk 0:00:45.3]} 42... Bb2 {[%clk 0:00:21.8]} 43. Nd3 {[%clk 0:00:37.1]} 43...
Bc3 {[%clk 0:00:22.3]} 44. Kf4 {[%clk 0:00:30.8]} 44... d4 {[%clk 0:00:22.9]}
45. Ng4 {[%clk 0:00:19.7]} 45... Bd2+ {[%clk 0:00:17.3]} 46. Kf3 {[%clk
0:00:20.1]} 46... Bxg5 {[%clk 0:00:14]} 47. Bxd4 {[%clk 0:00:20]} 47... Nc7
{[%clk 0:00:14.6]} 48. Ne3 {[%clk 0:00:19.4]} 48... Nd5 {[%clk 0:00:13.5]} 49.
Nxd5 {[%clk 0:00:19.2]} 49... Bxd5+ {[%clk 0:00:14.4]} 50. Kg3 {[%clk
0:00:19.6]} 50... Kf8 {[%clk 0:00:14.4]} 51. Nf4 {[%clk 0:00:18]} 51... Bc4
{[%clk 0:00:14.9]} 52. Bc5+ {[%clk 0:00:16.2]} 52... Ke8 {[%clk 0:00:15]} 53.
Bd4 {[%clk 0:00:15.3]} 53... Kd7 {[%clk 0:00:15.1]} 54. Kf3 {[%clk 0:00:15]}
54... Bb3 {[%clk 0:00:13.5]} 55. Nd3 {[%clk 0:00:14.3]} 55... Bd5+ {[%clk
0:00:12.5]} 56. Kg4 {[%clk 0:00:13.4]} 56... Bh6 {[%clk 0:00:12.9]} 57. Nf4
{[%clk 0:00:12.2]} 57... Be6+ {[%clk 0:00:12.6]} 58. Kf3 {[%clk 0:00:11]} 58...
g5 {[%clk 0:00:11.7]} 59. Nd3 {[%clk 0:00:10]} 59... Bf5 {[%clk 0:00:09]} 60.
Nb4 {[%clk 0:00:07]} 60... Ke6 {[%clk 0:00:07.3]} 61. Bc3 {[%clk 0:00:06.2]}
61... Bf8 {[%clk 0:00:07.1]} 62. Nc6 {[%clk 0:00:04.6]} 62... Kd5 {[%clk
0:00:07.5]} 63. Nb4+ {[%clk 0:00:03.8]} 63... Kc4 {[%clk 0:00:06.3]} 64. Be1
{[%clk 0:00:04.2]} 64... Bxb4 {[%clk 0:00:06.5]} 65. Bxb4 {[%clk 0:00:03.8]}
65... Kxb4 {[%clk 0:00:07.4]} 66. Ke3 {[%clk 0:00:02.6]} 66... Kc5 {[%clk
0:00:07.8]} 67. e6 {[%clk 0:00:02.5]} 67... Bxe6 {[%clk 0:00:08.4]} 0-1

[Event "Late-Titled-Tuesday-Blitz-June-04-2024"]
[Site "Chess.com"]
[Date "2024.06.04"]
[Round "2"]
[White "PoXerStar"]
[Black "GMG"]
[Result "0-1"]
[WhiteElo "2390"]
[BlackElo "2705"]
[TimeControl "180+1"]
[EndTime "14:18:42 PDT"]
[Termination "GMG won on time"]

1. d4 {[%clk 0:03:00.9]} 1... d5 {[%clk 0:02:59.9]} 2. c4 {[%clk 0:02:58.4]}
2... e6 {[%clk 0:03:00.2]} 3. Nc3 {[%clk 0:02:55.5]} 3... Nf6 {[%clk 0:03:00.4]}
4. cxd5 {[%clk 0:02:55.2]} 4... exd5 {[%clk 0:03:00.4]} 5. Bf4 {[%clk
0:02:55.8]} 5... c6 {[%clk 0:02:50.1]} 6. e3 {[%clk 0:02:55.8]} 6... Bf5 {[%clk
0:02:50.3]} 7. Nge2 {[%clk 0:02:55.9]} 7... Nbd7 {[%clk 0:02:45.9]} 8. Ng3
{[%clk 0:02:55.2]} 8... Bg6 {[%clk 0:02:46]} 9. h4 {[%clk 0:02:54.2]} 9... h5
{[%clk 0:02:41.8]} 10. Bd3 {[%clk 0:02:53.8]} 10... Bxd3 {[%clk 0:02:39.5]} 11.
Qxd3 {[%clk 0:02:54.7]} 11... Nb6 {[%clk 0:02:28.3]} 12. f3 {[%clk 0:02:53.4]}
12... Bd6 {[%clk 0:02:26.7]} 13. Bxd6 {[%clk 0:02:50.5]} 13... Qxd6 {[%clk
0:02:25.6]} 14. Nf5 {[%clk 0:02:46.2]} 14... Qf8 {[%clk 0:02:26.1]} 15. Kf2
{[%clk 0:02:29.9]} 15... g6 {[%clk 0:02:25.3]} 16. Ng3 {[%clk 0:02:30.5]} 16...
Qe7 {[%clk 0:02:08.8]} 17. b3 {[%clk 0:02:22]} 17... O-O {[%clk 0:02:03.9]} 18.
Nge2 {[%clk 0:02:10]} 18... Rfe8 {[%clk 0:02:01.9]} 19. Nf4 {[%clk 0:02:08.5]}
19... Rad8 {[%clk 0:01:59.2]} 20. Rad1 {[%clk 0:02:00.8]} 20... Nc8 {[%clk
0:01:58.5]} 21. Nh3 {[%clk 0:01:38.6]} 21... Nd6 {[%clk 0:01:54.3]} 22. Ng5
{[%clk 0:01:36.4]} 22... Nf5 {[%clk 0:01:53.2]} 23. Rde1 {[%clk 0:01:27.6]}
23... c5 {[%clk 0:01:42.9]} 24. dxc5 {[%clk 0:01:03.9]} 24... Qxc5 {[%clk
0:01:41.5]} 25. Nb5 {[%clk 0:01:04.4]} 25... Rc8 {[%clk 0:01:17.3]} 26. Rc1
{[%clk 0:00:48.1]} 26... Qxc1 {[%clk 0:01:12.2]} 27. Rxc1 {[%clk 0:00:49]} 27...
Rxc1 {[%clk 0:01:12.4]} 28. e4 {[%clk 0:00:31.8]} 28... dxe4 {[%clk 0:01:06.1]}
29. Nxe4 {[%clk 0:00:30.5]} 29... Nxe4+ {[%clk 0:00:51.3]} 30. fxe4 {[%clk
0:00:31.4]} 30... Nh6 {[%clk 0:00:51.1]} 31. Nd6 {[%clk 0:00:30.2]} 31... Rd8
{[%clk 0:00:40.1]} 32. Kg3 {[%clk 0:00:17]} 32... Rc6 {[%clk 0:00:30.2]} 33. e5
{[%clk 0:00:17]} 33... Ng4 {[%clk 0:00:30.8]} 34. Qd5 {[%clk 0:00:07.1]} 34...
Nxe5 {[%clk 0:00:29]} 35. Qxe5 {[%clk 0:00:08]} 35... Rcxd6 {[%clk 0:00:24.6]}
36. Qe7 {[%clk 0:00:08.5]} 36... R8d7 {[%clk 0:00:22.6]} 37. Qe8+ {[%clk
0:00:08.6]} 37... Kg7 {[%clk 0:00:23.1]} 38. Qe5+ {[%clk 0:00:08.9]} 38... Kh7
{[%clk 0:00:23.3]} 39. Qe8 {[%clk 0:00:07.5]} 39... b6 {[%clk 0:00:20.6]} 40.
Qe5 {[%clk 0:00:06.4]} 40... a5 {[%clk 0:00:20.5]} 41. Kh2 {[%clk 0:00:04.5]}
41... Re6 {[%clk 0:00:20.6]} 42. Qf4 {[%clk 0:00:04.6]} 42... Kg7 {[%clk
0:00:20.1]} 43. Qf2 {[%clk 0:00:03.1]} 43... Rd5 {[%clk 0:00:19.8]} 44. Qf4
{[%clk 0:00:01.1]} 44... Rf5 {[%clk 0:00:18.5]} 45. Qd4+ {[%clk 0:00:01.8]}
45... Kh7 {[%clk 0:00:18.7]} 46. Qd7 {[%clk 0:00:01.7]} 46... Kg8 {[%clk
0:00:17.5]} 47. Qc8+ {[%clk 0:00:01.5]} 47... Kg7 {[%clk 0:00:17.4]} 48. Qc3+
{[%clk 0:00:01.9]} 48... Rfe5 {[%clk 0:00:17.8]} 49. Qc7 {[%clk 0:00:01.9]}
49... Re4 {[%clk 0:00:17.9]} 50. Qc3+ {[%clk 0:00:01]} 50... Kh7 {[%clk
0:00:17.8]} 51. Qf3 {[%clk 0:00:01.2]} 51... Kg8 {[%clk 0:00:17.2]} 52. Qg3
{[%clk 0:00:01]} 52... Rg4 {[%clk 0:00:16.5]} 53. Qb8+ {[%clk 0:00:01.3]} 53...
Kh7 {[%clk 0:00:15.9]} 54. Kh3 {[%clk 0:00:01.2]} 54... Re3+ {[%clk 0:00:15.3]}
55. Kh2 {[%clk 0:00:01.4]} 55... Rxh4+ {[%clk 0:00:14.9]} 56. Kg1 {[%clk
0:00:02.1]} 56... Re1+ {[%clk 0:00:13.7]} 57. Kf2 {[%clk 0:00:02.1]} 57... Re7
{[%clk 0:00:14.3]} 58. Qxb6 {[%clk 0:00:02]} 58... Rf4+ {[%clk 0:00:13.2]} 59.
Kg3 {[%clk 0:00:02.4]} 59... Rf5 {[%clk 0:00:13.9]} 60. Kh2 {[%clk 0:00:02.6]}
60... Ree5 {[%clk 0:00:13.8]} 61. a3 {[%clk 0:00:02.2]} 61... Rg5 {[%clk
0:00:13]} 62. Qc7 {[%clk 0:00:01]} 62... Kg7 {[%clk 0:00:12.6]} 63. Qc3 {[%clk
0:00:01.2]} 63... Kg8 {[%clk 0:00:11.8]} 64. Qc8+ {[%clk 0:00:01.1]} 64... Kh7
{[%clk 0:00:12.2]} 65. Qc7 {[%clk 0:00:01.1]} 65... Ref5 {[%clk 0:00:11.6]} 0-1

[Event "Late-Titled-Tuesday-Blitz-June-04-2024"]
[Site "Chess.com"]
[Date "2024.06.04"]
[Round "2"]
[White "zverr1"]
[Black "penguingm1"]
[Result "0-1"]
[WhiteElo "2599"]
[BlackElo "2936"]
[TimeControl "180+1"]
[EndTime "14:18:46 PDT"]
[Termination "penguingm1 won by checkmate"]

1. e4 {[%clk 0:03:00.9]} 1... e5 {[%clk 0:02:59]} 2. Nf3 {[%clk 0:03:00.3]} 2...
Nc6 {[%clk 0:02:46.5]} 3. Bc4 {[%clk 0:02:57.7]} 3... Nf6 {[%clk 0:02:42.4]} 4.
Ng5 {[%clk 0:02:56.6]} 4... d5 {[%clk 0:02:38]} 5. exd5 {[%clk 0:02:57.5]} 5...
Na5 {[%clk 0:02:32.3]} 6. Bb5+ {[%clk 0:02:57.4]} 6... c6 {[%clk 0:02:25.5]} 7.
dxc6 {[%clk 0:02:58.3]} 7... bxc6 {[%clk 0:02:26.4]} 8. Be2 {[%clk 0:02:57.7]}
8... h6 {[%clk 0:02:22.9]} 9. Nh3 {[%clk 0:02:57.7]} 9... Bc5 {[%clk 0:02:13.4]}
10. d3 {[%clk 0:02:42.8]} 10... O-O {[%clk 0:02:11.3]} 11. Nc3 {[%clk
0:02:39.9]} 11... Re8 {[%clk 0:02:03.7]} 12. O-O {[%clk 0:02:36.3]} 12... Nb7
{[%clk 0:02:01.4]} 13. Kh1 {[%clk 0:02:28.2]} 13... Nd6 {[%clk 0:01:35]} 14. Be3
{[%clk 0:02:04.2]} 14... Bd4 {[%clk 0:00:42]} 15. Bf3 {[%clk 0:01:38.4]} 15...
Qb6 {[%clk 0:00:16.3]} 16. Na4 {[%clk 0:01:09.3]} 16... Qc7 {[%clk 0:00:12.3]}
17. Qd2 {[%clk 0:01:00.7]} 17... Bxe3 {[%clk 0:00:07.6]} 18. Qxe3 {[%clk
0:00:47.6]} 18... Bxh3 {[%clk 0:00:04.3]} 19. gxh3 {[%clk 0:00:47.4]} 19... Nf5
{[%clk 0:00:04.9]} 20. Qc5 {[%clk 0:00:41.4]} 20... Nd4 {[%clk 0:00:01]} 21. Bg2
{[%clk 0:00:38.1]} 21... Rac8 {[%clk 0:00:01]} 22. Rfe1 {[%clk 0:00:26.5]} 22...
Nd7 {[%clk 0:00:01.2]} 23. Qc4 {[%clk 0:00:23.7]} 23... Ne6 {[%clk 0:00:02.1]}
24. Bf3 {[%clk 0:00:13.8]} 24... Nf4 {[%clk 0:00:02.6]} 25. Bg4 {[%clk
0:00:14.1]} 25... Rcd8 {[%clk 0:00:02.7]} 26. Re3 {[%clk 0:00:12.5]} 26... Nf6
{[%clk 0:00:03.1]} 27. Rae1 {[%clk 0:00:09.4]} 27... h5 {[%clk 0:00:03.3]} 28.
Bf5 {[%clk 0:00:09.1]} 28... N6d5 {[%clk 0:00:02.6]} 29. Rg3 {[%clk 0:00:08.1]}
29... Qd6 {[%clk 0:00:02.9]} 30. Be4 {[%clk 0:00:08.2]} 30... g6 {[%clk
0:00:02.5]} 31. Bf3 {[%clk 0:00:08.6]} 31... Qf6 {[%clk 0:00:02.6]} 32. Nc3
{[%clk 0:00:07.9]} 32... h4 {[%clk 0:00:03.2]} 33. Ne4 {[%clk 0:00:07.7]} 33...
Qe7 {[%clk 0:00:03.9]} 34. Rg4 {[%clk 0:00:07.1]} 34... Nxh3 {[%clk 0:00:04.4]}
35. Qxc6 {[%clk 0:00:04.9]} 35... Kg7 {[%clk 0:00:03.9]} 36. Qc5 {[%clk
0:00:04.3]} 36... Qxc5 {[%clk 0:00:03.8]} 37. Nxc5 {[%clk 0:00:05.2]} 37...
Nxf2+ {[%clk 0:00:04.5]} 38. Kg1 {[%clk 0:00:05.2]} 38... Nxg4 {[%clk
0:00:05.4]} 39. Bxg4 {[%clk 0:00:06.1]} 39... Nf4 {[%clk 0:00:06]} 40. Bf3
{[%clk 0:00:06.6]} 40... Rc8 {[%clk 0:00:06.4]} 41. b4 {[%clk 0:00:07]} 41... a5
{[%clk 0:00:06.7]} 42. a3 {[%clk 0:00:07.3]} 42... axb4 {[%clk 0:00:07.6]} 43.
axb4 {[%clk 0:00:08.2]} 43... Rb8 {[%clk 0:00:08.3]} 44. Rb1 {[%clk 0:00:07.8]}
44... Rec8 {[%clk 0:00:08.8]} 45. Rb3 {[%clk 0:00:07.3]} 45... f5 {[%clk
0:00:08.2]} 46. Kf2 {[%clk 0:00:07.5]} 46... Kf6 {[%clk 0:00:08.8]} 47. Nd7+
{[%clk 0:00:07.2]} 47... Ke6 {[%clk 0:00:09]} 48. Nxb8 {[%clk 0:00:08.1]} 48...
Rxb8 {[%clk 0:00:09.9]} 49. Ke3 {[%clk 0:00:06.6]} 49... Kd6 {[%clk 0:00:10.3]}
50. c4 {[%clk 0:00:05.4]} 50... g5 {[%clk 0:00:10.9]} 51. c5+ {[%clk 0:00:04.2]}
51... Ke7 {[%clk 0:00:11.6]} 52. b5 {[%clk 0:00:03.8]} 52... Ne6 {[%clk
0:00:12.3]} 53. c6 {[%clk 0:00:01.8]} 53... Nd4 {[%clk 0:00:12.7]} 54. Rb2
{[%clk 0:00:02]} 54... Rxb5 {[%clk 0:00:12.1]} 55. Rxb5 {[%clk 0:00:02.2]} 55...
Nxb5 {[%clk 0:00:13]} 56. Bd5 {[%clk 0:00:02.5]} 56... Nc7 {[%clk 0:00:13.4]}
57. Bf3 {[%clk 0:00:02.7]} 57... g4 {[%clk 0:00:14.1]} 58. Bg2 {[%clk
0:00:03.1]} 58... Kd6 {[%clk 0:00:14.8]} 59. d4 {[%clk 0:00:03.6]} 59... Ne6
{[%clk 0:00:14.3]} 60. dxe5+ {[%clk 0:00:03.9]} 60... Kxe5 {[%clk 0:00:15.2]}
61. Bh1 {[%clk 0:00:04]} 61... f4+ {[%clk 0:00:15.6]} 62. Kd3 {[%clk 0:00:04.7]}
62... h3 {[%clk 0:00:16]} 63. Ke2 {[%clk 0:00:02.3]} 63... Kd4 {[%clk
0:00:14.4]} 64. Kf2 {[%clk 0:00:02.1]} 64... Kc5 {[%clk 0:00:14.2]} 65. Ke2
{[%clk 0:00:02.3]} 65... Nd4+ {[%clk 0:00:13.6]} 66. Kd3 {[%clk 0:00:03]} 66...
Nxc6 {[%clk 0:00:11.1]} 67. Ke4 {[%clk 0:00:03.4]} 67... g3 {[%clk 0:00:09.2]}
68. Kxf4 {[%clk 0:00:02.4]} 68... g2 {[%clk 0:00:09.1]} 69. Kg3 {[%clk
0:00:01.7]} 69... gxh1=Q {[%clk 0:00:09]} 70. Kxh3 {[%clk 0:00:02.6]} 70... Ne5
{[%clk 0:00:09.4]} 71. Kh4 {[%clk 0:00:02.5]} 71... Qe4+ {[%clk 0:00:08.6]} 72.
Kg5 {[%clk 0:00:03.4]} 72... Qg6+ {[%clk 0:00:08.8]} 73. Kh4 {[%clk 0:00:03.5]}
73... Qg4# {[%clk 0:00:08.8]} 0-1

[Event "Late-Titled-Tuesday-Blitz-June-04-2024"]
[Site "Chess.com"]
[Date "2024.06.04"]
[Round "2"]
[White "AldokhinIvan"]
[Black "HeinichessPY"]
[Result "0-1"]
[WhiteElo "2649"]
[BlackElo "2280"]
[TimeControl "180+1"]
[EndTime "14:18:47 PDT"]
[Termination "HeinichessPY won by resignation"]

1. e4 {[%clk 0:03:00.9]} 1... e6 {[%clk 0:02:59.4]} 2. d4 {[%clk 0:03:00.5]}
2... d5 {[%clk 0:02:59.7]} 3. Nc3 {[%clk 0:03:01.1]} 3... dxe4 {[%clk
0:02:58.2]} 4. Nxe4 {[%clk 0:03:00.7]} 4... Bd7 {[%clk 0:02:56.4]} 5. c4 {[%clk
0:02:54]} 5... Bc6 {[%clk 0:02:55.9]} 6. Nc3 {[%clk 0:02:54.1]} 6... Nf6 {[%clk
0:02:54]} 7. Nf3 {[%clk 0:02:54.4]} 7... Bb4 {[%clk 0:02:51.5]} 8. Ne5 {[%clk
0:02:51.9]} 8... O-O {[%clk 0:02:46.3]} 9. Be2 {[%clk 0:02:40.7]} 9... Ne4
{[%clk 0:02:40.6]} 10. Qd3 {[%clk 0:02:31.5]} 10... f5 {[%clk 0:02:28.3]} 11.
O-O {[%clk 0:02:24.5]} 11... Bxc3 {[%clk 0:02:23.1]} 12. bxc3 {[%clk 0:02:23.7]}
12... Nd7 {[%clk 0:02:19.4]} 13. Nxc6 {[%clk 0:02:22.9]} 13... bxc6 {[%clk
0:02:20.3]} 14. Bf3 {[%clk 0:01:37.5]} 14... Ndf6 {[%clk 0:02:05.7]} 15. Bf4
{[%clk 0:01:36.8]} 15... c5 {[%clk 0:01:49.2]} 16. Be5 {[%clk 0:01:36.4]} 16...
Rb8 {[%clk 0:01:42.2]} 17. Qe3 {[%clk 0:01:24.9]} 17... cxd4 {[%clk 0:01:33.8]}
18. cxd4 {[%clk 0:01:23.8]} 18... Rb4 {[%clk 0:01:18.8]} 19. Rac1 {[%clk
0:01:15.9]} 19... Qd7 {[%clk 0:01:19.2]} 20. Rfd1 {[%clk 0:01:05.9]} 20... c6
{[%clk 0:01:16.3]} 21. Qa3 {[%clk 0:00:49.6]} 21... Qb7 {[%clk 0:01:06.8]} 22.
h3 {[%clk 0:00:46.5]} 22... Nd7 {[%clk 0:01:01.8]} 23. Bf4 {[%clk 0:00:33.1]}
23... Rb2 {[%clk 0:00:46.4]} 24. Bxe4 {[%clk 0:00:21]} 24... fxe4 {[%clk
0:00:47.3]} 25. Rd2 {[%clk 0:00:20.6]} 25... Rb1 {[%clk 0:00:32.2]} 26. Rdd1
{[%clk 0:00:14.6]} 26... Rb2 {[%clk 0:00:28.7]} 27. Qg3 {[%clk 0:00:13.4]} 27...
Nf6 {[%clk 0:00:23.2]} 28. Be5 {[%clk 0:00:11.3]} 28... Nh5 {[%clk 0:00:20.5]}
29. Qg4 {[%clk 0:00:05.9]} 29... Rfxf2 {[%clk 0:00:19.1]} 30. Qxh5 {[%clk
0:00:04.8]} 30... Rxg2+ {[%clk 0:00:19]} 31. Kh1 {[%clk 0:00:05.5]} 31... Qf7
{[%clk 0:00:09.8]} 32. Qxf7+ {[%clk 0:00:04.9]} 32... Kxf7 {[%clk 0:00:10.7]}
33. Rf1+ {[%clk 0:00:05]} 33... Ke7 {[%clk 0:00:09.2]} 34. Rb1 {[%clk
0:00:05.3]} 34... Rxa2 {[%clk 0:00:06.3]} 35. Rb7+ {[%clk 0:00:04.9]} 35... Ke8
{[%clk 0:00:06.6]} 36. Rff7 {[%clk 0:00:03.6]} 36... Rgc2 {[%clk 0:00:04.5]} 37.
Rbe7+ {[%clk 0:00:03]} 37... Kd8 {[%clk 0:00:04.4]} 38. Bc7+ {[%clk 0:00:02.9]}
38... Kc8 {[%clk 0:00:04.6]} 39. Re8+ {[%clk 0:00:03.1]} 39... Kb7 {[%clk
0:00:04.7]} 40. Bh2+ {[%clk 0:00:03.4]} 40... Ka6 {[%clk 0:00:04.5]} 41. Bg1
{[%clk 0:00:02.1]} 41... Ra1 {[%clk 0:00:04]} 42. Rf4 {[%clk 0:00:01.3]} 42...
Rcc1 {[%clk 0:00:04.4]} 43. Rg4 {[%clk 0:00:01.9]} 43... g6 {[%clk 0:00:04.1]}
44. Rxe6 {[%clk 0:00:02]} 44... e3 {[%clk 0:00:04.6]} 45. Rxc6+ {[%clk
0:00:02.2]} 45... Kb7 {[%clk 0:00:04.5]} 46. Re6 {[%clk 0:00:02.7]} 46... Rxc4
{[%clk 0:00:04.6]} 47. Rf4 {[%clk 0:00:02.5]} 47... a6 {[%clk 0:00:04.6]} 48.
Rf7+ {[%clk 0:00:02.3]} 48... Rc7 {[%clk 0:00:05.1]} 49. Rxc7+ {[%clk
0:00:02.4]} 49... Kxc7 {[%clk 0:00:06]} 50. Rxe3 {[%clk 0:00:02.8]} 50... Kd6
{[%clk 0:00:06.9]} 51. Re5 {[%clk 0:00:03.1]} 51... Rd1 {[%clk 0:00:05.8]} 52.
Rc5 {[%clk 0:00:03.3]} 52... Ra1 {[%clk 0:00:03.8]} 53. Kg2 {[%clk 0:00:03]}
53... h6 {[%clk 0:00:04.3]} 54. Bf2 {[%clk 0:00:03.2]} 54... Ra2 {[%clk
0:00:05.2]} 55. Kf3 {[%clk 0:00:03.5]} 55... g5 {[%clk 0:00:06.1]} 56. Be3
{[%clk 0:00:04]} 56... Ra3 {[%clk 0:00:06.4]} 57. Rf5 {[%clk 0:00:04.4]} 57...
Ke6 {[%clk 0:00:06.4]} 58. Re5+ {[%clk 0:00:04.9]} 58... Kd6 {[%clk 0:00:06.6]}
59. Re4 {[%clk 0:00:05.2]} 59... Kd5 {[%clk 0:00:06.8]} 60. Re5+ {[%clk
0:00:05.5]} 60... Kd6 {[%clk 0:00:07.2]} 61. Ke4 {[%clk 0:00:06]} 61... a5
{[%clk 0:00:07]} 62. d5 {[%clk 0:00:06.4]} 62... Rxe3+ {[%clk 0:00:06.1]} 63.
Kxe3 {[%clk 0:00:05]} 63... Kxe5 {[%clk 0:00:07]} 64. d6 {[%clk 0:00:03]} 64...
Kxd6 {[%clk 0:00:07.3]} 65. Kd4 {[%clk 0:00:03.9]} 65... Ke6 {[%clk 0:00:07.6]}
66. Ke4 {[%clk 0:00:04.3]} 66... Kf6 {[%clk 0:00:07.2]} 0-1